fUST/lending_fUST_20250705
["ID","MTS","AMOUNT","RATE_DAILY","PERIOD"]
[369687753,1751699445470,-460.0,0.00019452,2]
[369687754,1751699445479,-460.0,0.00019452,2]
[369687755,1751699445489,-161.1,0.00019452,2]
[369687756,1751699445498,-460.0,0.00019452,2]
[369687757,1751699445508,-460.0,0.00019452,2]
[369687758,1751699445517,-460.0,0.00019452,2]
[369687759,1751699445528,-546.38842411,0.00019452,2]
[369687760,1751699445538,-460.0,0.00019452,2]
[369687761,1751699445547,-460.0,0.00019452,2]
[369687762,1751699445556,-460.0,0.00019452,2]
[369687763,1751699445566,-309.14,0.00019452,2]
[369687764,1751699445575,-460.0,0.00019452,2]
[369687765,1751699445586,-460.0,0.00019452,2]
[369687766,1751699445596,-460.0,0.00019452,2]
[369687767,1751699445605,-460.0,0.00019452,2]
[369687768,1751699445615,-249.63,0.00019452,2]
[369687769,1751699445625,-321.25,0.00019452,2]
[369687770,1751699445635,-376.54,0.00019452,2]
[369687771,1751699445644,-460.0,0.00019452,2]
[369687772,1751699445653,-460.0,0.00019452,2]
[369687773,1751699445663,-460.0,0.00019452,2]
[369687774,1751699445672,-268.81,0.00019452,2]
[369687775,1751699445681,-460.0,0.00019452,2]
[369687776,1751699445691,-460.0,0.00019452,2]
[369687777,1751699445700,-460.0,0.00019452,2]
[369687778,1751699445710,-461.70098413,0.00019452,2]
[369687779,1751699445719,-460.0,0.00019452,2]
[369687780,1751699445729,-460.0,0.00019452,2]
[369687781,1751699445739,-460.0,0.00019452,2]
[369687782,1751699445748,-460.0,0.00019452,2]
[369687783,1751699445758,-460.0,0.00019452,2]
[369687784,1751699445768,-460.78398717,0.00019452,2]
[369687785,1751699445778,-460.0,0.00019452,2]
[369687786,1751699445788,-460.0,0.00019452,2]
[369687787,1751699445798,-460.0,0.00019452,2]
[369687788,1751699445807,-460.0,0.00019452,2]
[369687789,1751699445817,-460.0,0.00019452,2]
[369687790,1751699445827,-369.26,0.00019452,2]
[369687791,1751699445836,-387.66,0.00019452,2]
[369687792,1751699445846,-460.0,0.00019452,2]
[369687793,1751699445855,-460.0,0.00019452,2]
[369687794,1751699445865,-442.60291779,0.00019452,2]
[369687795,1751699445874,-460.0,0.00019452,2]
[369687796,1751699445884,-460.0,0.00019452,2]
[369687797,1751699445893,-460.0,0.00019452,2]
[369687798,1751699445903,-460.0,0.00019452,2]
[369687799,1751699445913,-461.80478698,0.00019452,2]
[369687800,1751699445922,-460.0,0.00019452,2]
[369687801,1751699445932,-298.78,0.00019452,2]
[369687802,1751699445941,-460.0,0.00019452,2]
[369687803,1751699445951,-509.5,0.00019452,2]
[369687805,1751699445960,-460.0,0.00019452,2]
[369687807,1751699445969,-460.0,0.00019452,2]
[369687808,1751699445979,-378.14,0.00019452,2]
[369687809,1751699445988,-460.0,0.00019452,2]
[369687810,1751699445998,-308.9,0.00019452,2]
[369687811,1751699446008,-460.0,0.00019452,2]
[369687812,1751699446018,-460.0,0.00019452,2]
[369687813,1751699446027,-460.0,0.00019452,2]
[369687814,1751699446036,-460.47276474,0.00019452,2]
[369687815,1751699446045,-460.0,0.00019452,2]
[369687816,1751699446055,-460.0,0.00019452,2]
[369687817,1751699446064,-460.0,0.00019452,2]
[369687818,1751699446074,-460.0,0.00019452,2]
[369687819,1751699446083,-485.0,0.00019452,2]
[369687820,1751699446093,-460.0,0.00019452,2]
[369687821,1751699446102,-460.0,0.00019452,2]
[369687822,1751699446111,-460.0,0.00019452,2]
[369687823,1751699446121,-460.0,0.00019452,2]
[369687824,1751699446130,-460.0,0.00019452,2]
[369687825,1751699446139,-166.72,0.00019452,2]
[369687826,1751699446149,-260.99,0.00019452,2]
[369687827,1751699446158,-460.0,0.00019452,2]
[369687828,1751699446167,-460.0,0.00019452,2]
[369687829,1751699446176,-460.0,0.00019452,2]
[369687830,1751699446186,-488.05,0.00019452,2]
[369687831,1751699446196,-167.41,0.00019452,2]
[369687832,1751699446205,-460.0,0.00019452,2]
[369687833,1751699446215,-460.0,0.00019452,2]
[369687834,1751699446229,-460.0,0.00019452,2]
[369687835,1751699446239,-460.0,0.00019452,2]
[369687836,1751699446248,-460.0,0.00019452,2]
[369687837,1751699446257,-460.0,0.00019452,2]
[369687838,1751699446268,-460.0,0.00019452,2]
[369687839,1751699446277,-369.74,0.00019452,2]
[369687840,1751699446286,-1167.57,0.00019452,2]
[369687841,1751699446298,-460.0,0.00019452,2]
[369687842,1751699446307,-460.0,0.00019452,2]
[369687843,1751699446317,-460.0,0.00019452,2]
[369687844,1751699446326,-460.0,0.00019452,2]
[369687845,1751699446335,-424.2,0.00019452,2]
[369687846,1751699446344,-460.0,0.00019452,2]
[369687847,1751699446354,-193.77704936,0.00019452,2]
[369687848,1751699446363,-460.0,0.00019452,2]
[369687849,1751699446372,-460.0,0.00019452,2]
[369687850,1751699446382,-460.0,0.00019452,2]
[369687851,1751699446391,-460.0,0.00019452,2]
[369687852,1751699446401,-460.0,0.00019452,2]
[369687853,1751699446410,-460.0,0.00019452,2]
[369687854,1751699446419,-437.06384955,0.00019452,2]
[369687855,1751699446429,-258.9010757,0.00019452,2]
[369687856,1751699446439,-461.34860061,0.00019452,2]
[369687857,1751699446448,-460.0,0.00019452,2]
[369687858,1751699446457,-460.0,0.00019452,2]
[369687859,1751699446467,-462.02108873,0.00019452,2]
[369687860,1751699446477,-460.0,0.00019452,2]
[369687861,1751699446486,-781.72,0.00019452,2]
[369687862,1751699446496,-460.0,0.00019452,2]
[369687863,1751699446508,-460.0,0.00019452,2]
[369687864,1751699446518,-799.66,0.00019452,2]
[369687865,1751699446528,-460.0,0.00019452,2]
[369687866,1751699446538,-460.0,0.00019452,2]
[369687867,1751699446547,-460.0,0.00019452,2]
[369687868,1751699446557,-460.0,0.00019452,2]
[369687869,1751699446567,-460.0,0.00019452,2]
[369687870,1751699446577,-460.0,0.00019452,2]
[369687871,1751699446586,-1212.79,0.00019452,2]
[369687872,1751699446596,-460.0,0.00019452,2]
[369687873,1751699446605,-460.0,0.00019452,2]
[369687874,1751699446615,-694.62,0.00019452,2]
[369687875,1751699446625,-460.0,0.00019452,2]
[369687876,1751699446635,-460.0,0.00019452,2]
[369687877,1751699446644,-2847.54,0.00019452,2]
[369687878,1751699446653,-460.0,0.00019452,2]
[369687879,1751699446663,-572.61,0.00019452,2]
[369687880,1751699446672,-460.0,0.00019452,2]
[369687881,1751699446682,-460.0,0.00019452,2]
[369687882,1751699446692,-460.0,0.00019452,2]
[369687883,1751699446701,-460.0,0.00019452,2]
[369687884,1751699446710,-217.21,0.00019452,2]
[369687885,1751699446720,-460.0,0.00019452,2]
[369687886,1751699446729,-1328.74,0.00019452,2]
[369687887,1751699446739,-460.0,0.00019452,2]
[369687888,1751699446748,-460.0,0.00019452,2]
[369687889,1751699446757,-460.0,0.00019452,2]
[369687890,1751699446820,-639.03,0.00019452,2]
[369687891,1751699446830,-211.73,0.00019452,2]
[369687892,1751699446839,-426.55,0.00019452,2]
[369687893,1751699446848,-1780.19,0.00019452,2]
[369687894,1751699446857,-460.0,0.00019452,2]
[369687895,1751699446866,-460.0,0.00019452,2]
[369687896,1751699446875,-460.0,0.00019452,2]
[369687897,1751699446884,-460.0,0.00019452,2]
[369687898,1751699446893,-919.13,0.00019452,2]
[369687899,1751699446903,-460.0,0.00019452,2]
[369687900,1751699446912,-165.55,0.00019452,2]
[369687901,1751699446921,-460.0,0.00019452,2]
[369687902,1751699446930,-460.0,0.00019452,2]
[369687903,1751699446939,-460.0,0.00019452,2]
[369687904,1751699446948,-242.43,0.00019452,2]
[369687905,1751699446957,-460.0,0.00019452,2]
[369687906,1751699446966,-460.0,0.00019452,2]
[369687907,1751699446975,-2235.37,0.00019452,2]
[369687908,1751699446984,-1020.55,0.00019452,2]
[369687909,1751699446994,-460.0,0.00019452,2]
[369687910,1751699447003,-460.0,0.00019452,2]
[369687911,1751699447012,-460.0,0.00019452,2]
[369687912,1751699447021,-460.0,0.00019452,2]
[369687913,1751699447031,-460.0,0.00019452,2]
[369687914,1751699447041,-460.0,0.00019452,2]
[369687915,1751699447050,-460.0,0.00019452,2]
[369687916,1751699447060,-450.0,0.00019452,2]
[369687917,1751699447069,-606.87966035,0.00019452,2]
[369687918,1751699447078,-460.0,0.00019452,2]
[369687919,1751699447088,-460.0,0.00019452,2]
[369687920,1751699447097,-460.0,0.00019452,2]
[369687921,1751699447106,-974.1,0.00019452,2]
[369687922,1751699447116,-460.0,0.00019452,2]
[369687923,1751699447125,-460.0,0.00019452,2]
[369687924,1751699447134,-460.0,0.00019452,2]
[369687925,1751699447143,-460.0,0.00019452,2]
[369687926,1751699447152,-460.0,0.00019452,2]
[369687927,1751699447161,-460.0,0.00019452,2]
[369687928,1751699447171,-602.66,0.00019452,2]
[369687929,1751699447186,-460.0,0.00019452,2]
[369687930,1751699447195,-460.0,0.00019452,2]
[369687931,1751699447206,-907.94,0.00019452,2]
[369687932,1751699447220,-460.0,0.00019452,2]
[369687933,1751699447230,-460.0,0.00019452,2]
[369687934,1751699447240,-460.0,0.00019452,2]
[369687935,1751699447250,-460.0,0.00019452,2]
[369687936,1751699447259,-343.29,0.00019452,2]
[369687937,1751699447269,-460.0,0.00019452,2]
[369687938,1751699447278,-460.0,0.00019452,2]
[369687939,1751699447287,-460.0,0.00019452,2]
[369687940,1751699447297,-460.0,0.00019452,2]
[369687941,1751699447307,-460.0,0.00019452,2]
[369687942,1751699447316,-837.77,0.00019452,2]
[369687943,1751699447325,-460.0,0.00019452,2]
[369687944,1751699447334,-460.0,0.00019452,2]
[369687945,1751699447343,-153.83,0.00019452,2]
[369687946,1751699447353,-460.0,0.00019452,2]
[369687947,1751699447363,-460.0,0.00019452,2]
[369687948,1751699447374,-460.0,0.00019452,2]
[369687949,1751699447384,-460.0,0.00019452,2]
[369687950,1751699447393,-460.0,0.00019452,2]
[369687951,1751699447403,-406.62,0.00019452,2]
[369687952,1751699447413,-460.0,0.00019452,2]
[369687953,1751699447423,-460.0,0.00019452,2]
[369687954,1751699447432,-460.0,0.00019452,2]
[369687955,1751699447441,-460.0,0.00019452,2]
[369687956,1751699447452,-669.22,0.00019452,2]
[369687957,1751699447464,-639.39,0.00019452,2]
[369687958,1751699447475,-460.0,0.00019452,2]
[369687959,1751699447483,-460.0,0.00019452,2]
[369687960,1751699447492,-1887.73,0.00019452,2]
[369687961,1751699447502,-1473.29,0.00019452,2]
[369687962,1751699447511,-460.0,0.00019452,2]
[369687963,1751699447521,-460.0,0.00019452,2]
[369687964,1751699447531,-311.22,0.00019452,2]
[369687965,1751699447540,-460.0,0.00019452,2]
[369687966,1751699447550,-460.0,0.00019452,2]
[369687967,1751699447559,-460.0,0.00019452,2]
[369687968,1751699447568,-460.0,0.00019452,2]
[369687969,1751699447579,-460.0,0.00019452,2]
[369687970,1751699447590,-460.0,0.00019452,2]
[369687971,1751699447600,-460.0,0.00019452,2]
[369687972,1751699447610,-460.0,0.00019452,2]
[369687973,1751699447619,-460.0,0.00019452,2]
[369687974,1751699447630,-500.0,0.00019468,2]
[369687975,1751699447640,-460.0,0.0001947,2]
[369687976,1751699447650,-460.0,0.0001947,2]
[369687977,1751699447659,-362.74550615,0.0001947,2]
[369687978,1751699447669,-461.33323165,0.0001947,2]
[369687979,1751699447679,-460.62042086,0.0001947,2]
[369687980,1751699447688,-460.0,0.0001947,2]
[369687981,1751699447697,-461.49882156,0.0001947,2]
[369687982,1751699447707,-460.0,0.0001947,2]
[369687983,1751699447717,-460.0,0.0001947,2]
[369687984,1751699447728,-494.45086142,0.0001947,2]
[369687985,1751699447738,-509.40913637,0.0001947,2]
[369687986,1751699447746,-461.63382994,0.0001947,2]
[369687987,1751699447756,-443.67139584,0.0001947,2]
[369687988,1751699447765,-460.0,0.0001947,2]
[369687989,1751699447774,-460.0,0.0001947,2]
[369687990,1751699447783,-460.0,0.0001947,2]
[369687991,1751699447792,-191.02252366,0.0001947,2]
[369687992,1751699447801,-460.0,0.0001947,2]
[369687993,1751699447810,-460.0,0.0001947,2]
[369687994,1751699447820,-296.06,0.0001947,2]
[369687995,1751699447829,-275.26,0.0001947,2]
[369687996,1751699447838,-312.71,0.0001947,2]
[369687998,1751699447848,-460.0,0.0001947,2]
[369688000,1751699447857,-460.0,0.0001947,2]
[369688002,1751699447866,-56619.97177659,0.00019547,2]
[369688004,1751699447876,-467.48540732,0.00019566,2]
[369688006,1751699447885,-460.0,0.00019571,2]
[369688008,1751699447894,-460.0,0.00019571,2]
[369688009,1751699447905,-500.0,0.00019721,2]
[369688011,1751699447918,-500.0,0.00019721,2]
[369688013,1751699447927,-571.92585534,0.00019721,2]
[369688016,1751699447937,-501.11922685,0.00019721,2]
[369688017,1751699447946,-1000.0,0.00019721,2]
[369688019,1751699447955,-500.0,0.00019721,2]
[369688021,1751699447964,-215.49,0.00019726,2]
[369688023,1751699447973,-460.0,0.00019726,2]
[369688025,1751699447982,-228.15,0.00019726,2]
[369688027,1751699447991,-460.0,0.00019726,2]
[369688029,1751699448000,-460.0,0.00019726,2]
[369688030,1751699448009,-460.0,0.00019726,2]
[369688031,1751699448018,-503.18409847,0.00019726,2]
[369688032,1751699448027,-204.86262759,0.00019726,2]
[369688033,1751699448037,-460.0,0.00019726,2]
[369688034,1751699448047,-460.0,0.00019726,2]
[369688035,1751699448058,-460.0,0.00019726,2]
[369688036,1751699448067,-460.0,0.00019726,2]
[369688037,1751699448077,-460.0,0.00019726,2]
[369688038,1751699448086,-460.0,0.00019726,2]
[369688040,1751699448095,-460.0,0.00019726,2]
[369688042,1751699448105,-460.0,0.00019726,2]
[369688044,1751699448114,-460.0,0.00019726,2]
[369688045,1751699448123,-593.82,0.00019726,2]
[369688047,1751699448133,-460.0,0.00019726,2]
[369688048,1751699448142,-460.0,0.00019726,2]
[369688049,1751699448151,-460.0,0.00019726,2]
[369688050,1751699448160,-460.0,0.00019726,2]
[369688051,1751699448169,-524.72,0.00019726,2]
[369688052,1751699448178,-460.0,0.00019726,2]
[369688053,1751699448187,-460.0,0.00019726,2]
[369688054,1751699448197,-460.0,0.00019726,2]
[369688055,1751699448207,-461.60092312,0.00019726,2]
[369688056,1751699448222,-460.0,0.00019726,2]
[369688057,1751699448231,-463.42469228,0.00019726,2]
[369688058,1751699448241,-460.0,0.00019726,2]
[369688059,1751699448251,-371.50799435,0.00019726,2]
[369688060,1751699448260,-460.0,0.00019726,2]
[369688061,1751699448269,-460.0,0.00019726,2]
[369688062,1751699448278,-492.57,0.00019726,2]
[369688063,1751699448288,-460.0,0.00019726,2]
[369688064,1751699448300,-460.0,0.00019726,2]
[369688065,1751699448310,-460.0,0.00019726,2]
[369688066,1751699448320,-460.0,0.00019726,2]
[369688067,1751699448329,-352.21326845,0.00019726,2]
[369688068,1751699448339,-460.0,0.00019726,2]
[369688069,1751699448349,-460.0,0.00019726,2]
[369688070,1751699448358,-460.0,0.00019726,2]
[369688071,1751699448367,-461.16281927,0.00019726,2]
[369688072,1751699448376,-461.87289088,0.00019726,2]
[369688073,1751699448385,-461.47280054,0.00019726,2]
[369688074,1751699448394,-461.83863673,0.00019726,2]
[369688075,1751699448404,-460.0,0.00019726,2]
[369688076,1751699448413,-460.0,0.00019726,2]
[369688077,1751699448422,-462.6142454,0.00019726,2]
[369688078,1751699448431,-214.98527679,0.00019726,2]
[369688079,1751699448441,-460.0,0.00019726,2]
[369688080,1751699448451,-460.0,0.00019726,2]
[369688081,1751699448461,-460.0,0.00019726,2]
[369688082,1751699448470,-460.0,0.00019726,2]
[369688083,1751699448479,-577.15,0.00019726,2]
[369688084,1751699448489,-460.0,0.00019726,2]
[369688085,1751699448499,-1167.57,0.00019726,2]
[369688086,1751699448509,-566.34,0.00019726,2]
[369688087,1751699448519,-460.0,0.00019726,2]
[369688088,1751699448530,-460.0,0.00019726,2]
[369688089,1751699448541,-460.0,0.00019726,2]
[369688090,1751699448551,-460.0,0.00019726,2]
[369688091,1751699448561,-460.0,0.00019726,2]
[369688092,1751699448571,-460.0,0.00019726,2]
[369688093,1751699448580,-460.0,0.00019726,2]
[369688094,1751699448590,-460.0,0.00019726,2]
[369688095,1751699448599,-460.0,0.00019726,2]
[369688096,1751699448609,-781.72,0.00019726,2]
[369688097,1751699448618,-460.0,0.00019726,2]
[369688098,1751699448628,-799.66,0.00019726,2]
[369688099,1751699448639,-460.0,0.00019726,2]
[369688100,1751699448648,-521.54,0.00019726,2]
[369688101,1751699448658,-460.0,0.00019726,2]
[369688102,1751699448668,-460.0,0.00019726,2]
[369688103,1751699448678,-460.0,0.00019726,2]
[369688104,1751699448687,-460.0,0.00019726,2]
[369688105,1751699448697,-1212.79,0.00019726,2]
[369688106,1751699448707,-602.02800156,0.00019726,2]
[369688107,1751699448716,-460.0,0.00019726,2]
[369688108,1751699448726,-694.62,0.00019726,2]
[369688109,1751699448736,-460.0,0.00019726,2]
[369688110,1751699448745,-2847.54,0.00019726,2]
[369688111,1751699448755,-460.0,0.00019726,2]
[369688112,1751699448764,-463.29241626,0.00019726,2]
[369688113,1751699448774,-460.0,0.00019726,2]
[369688114,1751699448784,-460.0,0.00019726,2]
[369688115,1751699448794,-461.34427672,0.00019726,2]
[369688116,1751699448803,-1328.74,0.00019726,2]
[369688117,1751699448813,-460.0,0.00019726,2]
[369688118,1751699448823,-639.03,0.00019726,2]
[369688119,1751699448832,-1780.19,0.00019726,2]
[369688120,1751699448841,-460.0,0.00019726,2]
[369688121,1751699448851,-460.0,0.00019726,2]
[369688122,1751699448860,-460.0,0.00019726,2]
[369688123,1751699448869,-919.13,0.00019726,2]
[369688124,1751699448878,-167.37,0.00019726,2]
[369688125,1751699448887,-460.0,0.00019726,2]
[369688126,1751699448897,-460.0,0.00019726,2]
[369688127,1751699448907,-460.0,0.00019726,2]
[369688128,1751699448916,-461.38049562,0.00019726,2]
[369688129,1751699448926,-472.51714024,0.00019726,2]
[369688130,1751699448936,-2235.37,0.00019726,2]
[369688131,1751699448945,-1020.55,0.00019726,2]
[369688132,1751699448954,-460.0,0.00019726,2]
[369688133,1751699448963,-461.99997907,0.00019726,2]
[369688134,1751699448973,-460.0,0.00019726,2]
[369688135,1751699448982,-460.0,0.00019726,2]
[369688136,1751699448991,-460.0,0.00019726,2]
[369688137,1751699449001,-460.0,0.00019726,2]
[369688138,1751699449010,-463.72979266,0.00019726,2]
[369688139,1751699449020,-461.26153808,0.00019726,2]
[369688140,1751699449029,-974.1,0.00019726,2]
[369688141,1751699449039,-460.0,0.00019726,2]
[369688142,1751699449049,-460.0,0.00019726,2]
[369688143,1751699449059,-460.0,0.00019726,2]
[369688144,1751699449068,-460.0,0.00019726,2]
[369688145,1751699449077,-602.66,0.00019726,2]
[369688146,1751699449087,-460.0,0.00019726,2]
[369688147,1751699449097,-591.36,0.00019726,2]
[369688148,1751699449107,-907.94,0.00019726,2]
[369688149,1751699449116,-460.0,0.00019726,2]
[369688150,1751699449125,-460.0,0.00019726,2]
[369688151,1751699449135,-460.0,0.00019726,2]
[369688152,1751699449145,-155.46,0.00019726,2]
[369688153,1751699449154,-460.0,0.00019726,2]
[369688154,1751699449163,-460.0,0.00019726,2]
[369688155,1751699449173,-460.0,0.00019726,2]
[369688156,1751699449182,-460.0,0.00019726,2]
[369688157,1751699449192,-460.0,0.00019726,2]
[369688158,1751699449202,-837.77,0.00019726,2]
[369688159,1751699449212,-461.28247392,0.00019726,2]
[369688160,1751699449224,-576.17712303,0.00019726,2]
[369688161,1751699449236,-460.0,0.00019726,2]
[369688162,1751699449246,-460.0,0.00019726,2]
[369688163,1751699449256,-460.0,0.00019726,2]
[369688164,1751699449265,-460.0,0.00019726,2]
[369688165,1751699449275,-460.0,0.00019726,2]
[369688166,1751699449284,-460.0,0.00019726,2]
[369688167,1751699449294,-460.0,0.00019726,2]
[369688168,1751699449304,-386.36914886,0.00019726,2]
[369688169,1751699449314,-669.22,0.00019726,2]
[369688170,1751699449324,-639.39,0.00019726,2]
[369688171,1751699449334,-151.73,0.00019726,2]
[369688172,1751699449343,-1887.73,0.00019726,2]
[369688173,1751699449353,-1473.29,0.00019726,2]
[369688174,1751699449363,-460.0,0.00019726,2]
[369688175,1751699449373,-460.0,0.00019726,2]
[369688176,1751699449382,-460.0,0.00019726,2]
[369688177,1751699449392,-462.40117652,0.00019726,2]
[369688178,1751699449402,-460.0,0.00019726,2]
[369688179,1751699449411,-460.0,0.00019726,2]
[369688180,1751699449421,-167.0,0.0001974,2]
[369688181,1751699449430,-336.60441109,0.00019742,2]
[369688182,1751699449440,-458.59484047,0.00019744,2]
[369688183,1751699449450,-460.0,0.00019744,2]
[369688184,1751699449459,-460.0,0.00019744,2]
[369688185,1751699449469,-439.71324364,0.00019845,2]
[369688186,1751699449478,-151.0,0.00019848,2]
[369688187,1751699449487,-151.0,0.000199,2]
[369688188,1751699449496,-203.8101498,0.000199,2]
[369688189,1751699449507,-207.4,0.0001994,2]
[369688190,1751699449525,-151.0,0.0001994,2]
[369688191,1751699449535,-151.0,0.0001994,2]
[369688192,1751699449545,-151.0,0.0001994,2]
[369688193,1751699449555,-151.0,0.0001994,2]
[369688194,1751699449565,-151.0,0.0001994,2]
[369688195,1751699449574,-151.0,0.0001994,2]
[369688196,1751699449584,-151.0,0.0001994,2]
[369688197,1751699449594,-151.0,0.0001994,2]
[369688198,1751699449605,-151.0,0.0001994,2]
[369688199,1751699449615,-300.0,0.0001994,2]
[369688200,1751699449625,-151.0,0.0001994,2]
[369688201,1751699449635,-300.0,0.0001994,2]
[369688202,1751699449645,-500.0,0.0001994,2]
[369688203,1751699449655,-151.0,0.0001994,2]
[369688204,1751699449664,-300.0,0.0001994,2]
[369688205,1751699449674,-151.0,0.0001994,2]
[369688206,1751699449683,-300.0,0.0001994,2]
[369688207,1751699449693,-500.0,0.0001994,2]
[369688208,1751699449702,-151.0,0.0001994,2]
[369688209,1751699449711,-300.0,0.0001994,2]
[369688210,1751699449721,-500.0,0.0001994,2]
[369688211,1751699449730,-151.0,0.0001994,2]
[369688212,1751699449739,-300.0,0.0001994,2]
[369688213,1751699449749,-500.0,0.0001994,2]
[369688214,1751699449758,-151.0,0.0001994,2]
[369688215,1751699449767,-300.0,0.0001994,2]
[369688216,1751699449776,-500.0,0.0001994,2]
[369688217,1751699449785,-151.0,0.0001994,2]
[369688218,1751699449795,-500.0,0.0001994,2]
[369688219,1751699449804,-5000.0,0.0001994,2]
[369688220,1751699449814,-151.0,0.0001994,2]
[369688221,1751699449823,-398.07688309,0.0001994,2]
[369688222,1751699449833,-300.0,0.0001994,2]
[369688223,1751699449842,-300.0,0.0001994,2]
[369688224,1751699449851,-300.0,0.0001994,2]
[369688225,1751699449861,-300.0,0.0001994,2]
[369688226,1751699449870,-300.0,0.0001994,2]
[369688227,1751699449879,-234.65,0.0002,2]
[369688228,1751699449888,-497.1,0.0002,2]
[369688229,1751699449897,-332.14,0.0002,2]
[369688230,1751699449906,-460.0,0.0002,2]
[369688231,1751699449916,-460.0,0.0002,2]
[369688232,1751699449925,-279.58386123,0.0002,2]
[369688233,1751699449934,-460.0,0.0002,2]
[369688234,1751699449943,-555.57,0.0002,2]
[369688235,1751699449953,-460.0,0.0002,2]
[369688236,1751699449962,-460.0,0.0002,2]
[369688237,1751699449971,-311.65,0.0002,2]
[369688238,1751699449981,-221.72,0.0002,2]
[369688239,1751699449990,-401.9044965,0.0002,2]
[369688240,1751699450000,-460.0,0.0002,2]
[369688241,1751699450010,-460.0,0.0002,2]
[369688242,1751699450019,-463.36832277,0.0002,2]
[369688243,1751699450029,-165.52,0.0002,2]
[369688244,1751699450040,-460.0,0.0002,2]
[369688245,1751699450050,-460.0,0.0002,2]
[369688246,1751699450059,-460.0,0.0002,2]
[369688247,1751699450070,-1167.57,0.0002,2]
[369688248,1751699450079,-460.0,0.0002,2]
[369688249,1751699450089,-460.0,0.0002,2]
[369688250,1751699450099,-460.0,0.0002,2]
[369688251,1751699450109,-460.0,0.0002,2]
[369688252,1751699450118,-460.0,0.0002,2]
[369688253,1751699450128,-460.0,0.0002,2]
[369688254,1751699450138,-781.72,0.0002,2]
[369688255,1751699450147,-799.66,0.0002,2]
[369688256,1751699450157,-460.0,0.0002,2]
[369688257,1751699450166,-460.0,0.0002,2]
[369688258,1751699450176,-460.0,0.0002,2]
[369688259,1751699450185,-1212.79,0.0002,2]
[369688260,1751699450195,-694.62,0.0002,2]
[369688261,1751699450204,-2847.54,0.0002,2]
[369688262,1751699450215,-460.0,0.0002,2]
[369688263,1751699450228,-460.0,0.0002,2]
[369688264,1751699450238,-429.10893062,0.0002,2]
[369688265,1751699450247,-1328.74,0.0002,2]
[369688266,1751699450256,-639.03,0.0002,2]
[369688267,1751699450267,-1780.19,0.0002,2]
[369688268,1751699450277,-460.0,0.0002,2]
[369688269,1751699450287,-460.0,0.0002,2]
[369688270,1751699450297,-919.13,0.0002,2]
[369688273,1751699450432,-460.0,0.0002,2]
[369688274,1751699450442,-460.0,0.0002,2]
[369688275,1751699450451,-2235.37,0.0002,2]
[369688276,1751699450460,-1020.55,0.0002,2]